Cogmind - Beta 14 @@@ ROGUE MODE // 2024.11.03 @ 20:25:45 Player: Minty Result: Destroyed by Y-45 Defender with Heavy Assault Rifle Performance ------------- Evolutions (1) 500 Regions Visited (4) 800 Robots Destroyed (54) 270 Value Destroyed (1281) 1281 Prototype IDs (6) 120 Alien Tech Used (0) 0 Bonus (87) 87 TOTAL SCORE: 3058 Bonus ------- High Alert Combat Kills 87 Cogmind --------- Core Integrity 0/400 Matter 240/300 Energy 99/100 System Corruption 1% Temperature Cool (0) Movement Core (50) Location -9/Storage Parts ------- > --- POWER (1) -------- (None) > --- PROPULSION (4) --- (None) > --- UTILITY (2) ------ Cooling System > --- WEAPON (2) ------- (None) > --- INVENTORY (5) ---- Heavy Ion Engine Small Storage Unit Hacking Suite Field Recycling Unit (0) Plasma Cutter Peak State ------------ > --- POWER ------------ Heavy Ion Engine > --- PROPULSION ------- Improved Flight Unit Improved Flight Unit Improved Flight Unit Improved Flight Unit > --- UTILITY ---------- Small Storage Unit Signal Interpreter > --- WEAPON ----------- Heavy Assault Rifle Heavy Assault Rifle > --- INVENTORY -------- Large Battery EM Pulse Gun EM Pulse Gun Light Assault Rifle [Rating: 21] Favorites ----------- Power Light Ion Engine Engine Light Ion Engine Propulsion Improved Flight Unit Leg Aluminum Leg Wheel Compact Wheel Flight Unit Improved Flight Unit Utility Small Storage Unit Device Cooling System Storage Small Storage Unit Processor Signal Interpreter Protection Light Armor Plating Weapon EM Pulse Gun Energy Gun EM Pulse Gun Ballistic Gun Heavy Assault Rifle Launcher Grenade Launcher Build | -11 -10 -10 -9 -9 ------- Run | Yrd Mat Min Mat Sto Slots Evolved 2 | . . . 2 . Power . | . . . . . Propulsion 2 | . . . 2 . Utility . | . . . . . Weapon . | . . . . . Parts Attached 61 | 1 21 7 27 5 Power 11 | . 1 2 7 1 Engine 11 | . 1 2 7 1 Core . | . . . . . Reactor . | . . . . . Propulsion 9 | . 4 . 5 . Treads . | . . . . . Leg 3 | . . . 3 . Wheel 2 | . 2 . . . Hover . | . . . . . Flight 4 | . 2 . 2 . Utility 10 | . 1 . 8 1 Device 4 | . . . 3 1 Storage . | . . . . . Processor 2 | . 1 . 1 . Hackware . | . . . . . Protection 4 | . . . 4 . Artifact . | . . . . . Weapon 31 | 1 15 5 7 3 Energy Gun 11 | . 6 1 3 1 Energy Cannon . | . . . . . Ballistic Gun 13 | 1 6 2 4 . Ballistic Cannon . | . . . . . Launcher 7 | . 3 2 . 2 Special Weapon . | . . . . . Impact Weapon . | . . . . . Slashing Weapon . | . . . . . Piercing Weapon . | . . . . . Special Melee Weapon . | . . . . . Unidentified Prototypes 2 | . 1 . 1 . Parts Lost 19 | . 2 2 5 10 Power 4 | . 1 1 1 1 Propulsion 6 | . . . 3 3 Utility 1 | . . . . 1 Weapon 8 | . 1 1 1 5 Highest Loss Streak 10 | . 1 2 4 10 To Critical Strikes . | . . . . . Average Slot Usage (%) 85 | . 88 78 90 63 Engine 9 | . 11 7 8 8 Leg 11 | . 12 . 13 20 Wheel 2 | . 6 . . . Flight 17 | . 8 28 25 . Device 1 | . . . 2 3 Storage 12 | . 14 14 11 8 Processor 7 | . 11 14 2 . Protection 2 | . . . 5 6 Energy Gun 10 | . 15 2 6 14 Ballistic Gun 8 | . 5 3 15 . Launcher 1 | . 1 7 . 1 Peak Build Rating 21 | 6 13 12 21 13 Average Rating 11 | 6 8 10 16 8 On Entrance 9 | 6 6 11 12 11 Naked Turns . | . . . . . Heaviest Build 24 | 10 13 13 24 22 Greatest Support 32 | 20 32 10 30 30 Greatest Overweight (x) 2 | . 2 1 2 . Average Overweight (x) . | . . . . . Largest Inventory Capacity 8 | 8 8 8 8 8 Average Capacity 7 | 8 8 8 8 7 Most Carried 8 | 6 8 8 8 8 Average Carried 7 | 6 7 7 7 6 Final Capacity 8 | 8 8 8 8 5 Final Carried 8 | 6 7 7 8 5 Class Distribution -------------------- 72% | Mutant 19% | Scavenger-Mutant 8% | Sprinter Dominant Class ---------------- Mutant | -10/Materials Mutant | -10/Mines Scavenger-Mutant | -9/Materials Scavenger-Mutant | -9/Storage Resources | -11 -10 -10 -9 -9 ----------- Run | Yrd Mat Min Mat Sto Matter Collected 1196 | 200 166 217 603 10 Remotely . | . . . . . Salvage Created 1526 | . 477 142 708 199 Parts 99 | . 33 13 42 11 Haulers Intercepted 1 | . 1 . . . Recyclers Shooed 1 | . . . . 1 Parts Field Recycled 8 | . . . 8 . Retrieved Matter 118 | . . . 118 . Parts Self-Destructed . | . . . . . Prevented . | . . . . . Kills | -11 -10 -10 -9 -9 ------- Run | Yrd Mat Min Mat Sto Combat Hostiles Destroyed 36 | . 13 5 14 4 Guns 26 | . 8 1 14 3 AOE 10 | . 5 4 . 1 Classes Destroyed 10 | . 7 . 1 2 Worker 5 | . 1 2 2 . Builder 4 | . 1 2 . 1 Tunneler 1 | . 1 . . . Hauler 1 | . 1 . . . Recycler 1 | . . . . 1 Operator 1 | . . . . 1 Watcher 5 | . 3 . 1 1 Swarmer 12 | . 6 3 . 3 Grunt 20 | . 7 2 11 . Sentry 4 | . . . 3 1 Best Kill Streak 8 | . 5 4 6 8 Combat Bots Only 6 | . 5 3 6 4 Max Kills in Single Turn 2 | . 2 1 1 1 Gunslinging . | . . . . . Exploded 2 | . 2 1 . 1 Melee . | . . . . . Uniques/NPCs Destroyed . | . . . . . Combat | -11 -10 -10 -9 -9 -------- Run | Yrd Mat Min Mat Sto Hostile Shots Fired 293 | . 84 18 98 93 Missed 89 | . 25 6 34 24 Damage Taken 2560 | . 569 150 832 1009 Core 558 | . 107 40 114 297 Absorbed by Shields . | . . . . . Regen/Repaired (Parts) 125 | . 125 . . . Core Remaining (%) 70 | 100 . 41 . . Volleys Fired 153 | . 61 26 52 14 Largest 2 | . 2 1 2 2 Hottest 90 | . 80 40 90 90 Shots Fired 256 | . 102 25 104 25 Gun 231 | . 93 14 104 20 Cannon . | . . . . . Launcher 25 | . 9 11 . 5 Special . | . . . . . Kinetic 130 | . 44 1 85 . Thermal . | . . . . . Explosive 25 | . 9 11 . 5 Electromagnetic 101 | . 49 13 19 20 Robot Hit Streak 10 | . 5 5 10 7 Robot Miss Streak 6 | . 6 3 2 5 Penetration Max . | . . . . . Secondary Targets 6 | . . . 6 . Max Gunslinging Chain 1 | . . . 1 . Shots Hit Robots 151 | . 54 13 70 14 Core Hits 84 | . 29 10 29 16 Critical Kills . | . . . . . Critical Parts Destroyed 1 | . . . 1 . Critical Strikes 2 | . . . 1 1 Destroy 1 | . . . 1 . Corrupt 1 | . . . . 1 Melee Attacks . | . . . . . Impact . | . . . . . Slashing . | . . . . . Piercing . | . . . . . Sneak Attacks . | . . . . . Combat Hostiles . | . . . . . Follow-up Attacks . | . . . . . Damage Inflicted 3358 | . 1241 540 1122 455 Guns 2089 | . 690 117 1121 161 Cannons . | . . . . . Explosions 1266 | . 549 423 . 294 Melee . | . . . . . Ramming 3 | . 2 . 1 . Kinetic 1251 | . 291 14 946 . Thermal 303 | . 190 . . 113 Explosive 963 | . 359 423 . 181 Electromagnetic 838 | . 399 103 175 161 Impact . | . . . . . Slashing . | . . . . . Piercing . | . . . . . Highest Corruption 2 | . 2 2 1 1 Average Corruption 1 | . 2 2 1 1 Corruption Purged . | . . . . . Corruption Blocked . | . . . . . Effects 8 | . 1 3 4 . Message Errors 1 | . . 1 . . Matter Fused 2 | . . 1 1 . Heat Flow Errors 3 | . 1 . 2 . Misfires 1 | . . . 1 . Weapon Failures 1 | . . 1 . . Overload Shots . | . . . . . Overflow Damage 39 | . 4 22 . 13 Projectiles . | . . . . . Explosions 39 | . 4 22 . 13 Melee . | . . . . . Knockbacks . | . . . . . Impact . | . . . . . Kinetic . | . . . . . Secondary . | . . . . . Self-Inflicted Damage 182 | . . 51 . 131 Shots 7 | . . 2 . 5 Rammed . | . . . . . Targets Rammed 2 | . 1 . 1 . Kicked 2 | . 1 . 1 . Crushed . | . . . . . Highest Temperature 327 | . 224 22 327 323 Average Temperature 78 | . 41 8 94 149 Received Heat Transfer 867 | . 174 9 444 240 Siege Activations . | . . . . . Robots Corrupted 1 | . 1 . . . Combat Hostiles . | . . . . . Parts Fried 3 | . 1 . . 2 Impact Corruptions . | . . . . . Robots Melted . | . . . . . Combat Hostiles . | . . . . . Parts Melted . | . . . . . Heat Transferred 350 | . 150 . . 200 Parts Sabotaged . | . . . . . Parts Stolen . | . . . . . Parts Stripped . | . . . . . Power Chain Reactions 5 | . 3 . . 2 Alert | -11 -10 -10 -9 -9 ------- Run | Yrd Mat Min Mat Sto Peak Influence 569 | . 317 260 569 381 Initial 204 | . . 102 101 204 Average 251 | . 172 194 358 286 Maximum Alert Level 2 | . 1 1 2 1 Low Security (%) 49 | 100 68 73 28 . Level 1 32 | . 31 26 19 100 Level 2 18 | . . . 52 . Level 3 . | . . . . . Level 4 . | . . . . . Level 5 . | . . . . . High Security . | . . . . . Max Security . | . . . . . Squads Dispatched 8 | . 2 . 5 1 Investigation 6 | . 1 . 5 . Extermination . | . . . . . Reinforcement 2 | . 1 . . 1 Assault . | . . . . . Garrison . | . . . . . Intercept . | . . . . . Searches Triggered . | . . . . . Construction Impeded . | . . . . . Haulers Reinforced . | . . . . . Active Scanning Responses . | . . . . . Cargo Convoy Interrupts . | . . . . . Stealth | -11 -10 -10 -9 -9 --------- Run | Yrd Mat Min Mat Sto Distress Signals 2 | . 1 . . 1 Communications Jammed . | . . . . . Distress Signals . | . . . . . Times Spotted 65 | . 18 5 25 17 Peak Tracking Total 11 | . 4 3 8 11 Tactical Retreats 3 | . . . 3 . Traps | -11 -10 -10 -9 -9 ------- Run | Yrd Mat Min Mat Sto Traps Triggered 1 | . 1 . . . Indirectly . | . . . . . Trap Hack Attempts . | . . . . . Triggered . | . . . . . Disarmed . | . . . . . Reprogrammed . | . . . . . Reused . | . . . . . Traps Extracted . | . . . . . Installed . | . . . . . Triggered . | . . . . . Machines | -11 -10 -10 -9 -9 ---------- Run | Yrd Mat Min Mat Sto Machines Disabled 4 | . 1 . 3 . Max in Single Turn 1 | . 1 . 1 . Machines Repaired . | . . . . . Machines Dismantled . | . . . . . Machines Sabotaged 1 | . . . 1 . Overloaded Fab Kills . | . . . . . Hacking | -11 -10 -10 -9 -9 --------- Run | Yrd Mat Min Mat Sto Machines Accessed 14 | . 6 . 6 2 Terminals 11 | . 4 . 5 2 Fabricators . | . . . . . Repair Stations 1 | . 1 . . . Recycling Units 2 | . 1 . 1 . Scanalyzers . | . . . . . Garrison Access . | . . . . . Total Hacks 52 | . 25 . 19 8 Successful 22 | . 10 . 7 5 Failed 30 | . 15 . 12 3 Catastrophic 6 | . 3 . 2 1 Database Lockouts . | . . . . . Manual 25 | . 7 . 15 3 Terminals 41 | . 17 . 16 8 Fabricators . | . . . . . Repair Stations 5 | . 5 . . . Recycling Units 6 | . 3 . 3 . Scanalyzers . | . . . . . Garrison Access . | . . . . . Terminal Hacks 13 | . 5 . 4 4 Robot Analysis 4 | . 4 . . . Prototype ID Bank 2 | . . . 1 1 Branch Access Points 2 | . . . 1 1 Alert Level 3 | . . . 2 1 Locate Traps 1 | . . . . 1 Zone Layout 1 | . 1 . . . Fabricator Hacks . | . . . . . Repair Station Hacks 4 | . 4 . . . Scan Component 2 | . 2 . . . Repair 2 | . 2 . . . Recycling Unit Hacks 2 | . 1 . 1 . Report Inventory 2 | . 1 . 1 . Scanalyzer . | . . . . . Garrison Access Hacks . | . . . . . Unauthorized Hacks 3 | . . . 2 1 Terminals 3 | . . . 2 1 Assimilate 1 | . . . . 1 Botnet 1 | . . . 1 . Sabotage 1 | . . . 1 . Fabricators . | . . . . . Repair Stations . | . . . . . Recycling Units . | . . . . . Scanalyzers . | . . . . . Garrison Access . | . . . . . Data Cores Recovered . | . . . . . Used . | . . . . . Hacking Detections 14 | . 6 . 6 2 Full Trace Events 10 | . 3 . 5 2 Feedback Events 1 | . . . 1 . Corruption 1 | . . . 1 . Feedback Blocked . | . . . . . Robot Schematics Acquired . | . . . . . Robots Built . | . . . . . Authchips . | . . . . . Time . | . . . . . Total Robot Build Rating . | . . . . . Part Schematics Acquired . | . . . . . Parts Built . | . . . . . Authchips . | . . . . . Time . | . . . . . Total Part Build Rating . | . . . . . Parts Repaired 2 | . 2 . . . Time 58 | . 58 . . . Parts Recycled . | . . . . . Recycled Matter . | . . . . . Retrieved Matter . | . . . . . Retrieved Components . | . . . . . Parts Scanalyzed . | . . . . . Part Schematics Acquired . | . . . . . Parts Damaged . | . . . . . Bothacking | -11 -10 -10 -9 -9 ------------ Run | Yrd Mat Min Mat Sto Used RIF Installer . | . . . . . Robots Hacked . | . . . . . Non-combat . | . . . . . Combat . | . . . . . Robot Hacks Applied . | . . . . . Relay Couplers Released . | . . . . . Fabnet Peak Effective % . | . . . . . Robots Rewired . | . . . . . Allies Hacked . | . . . . . Hacks Repelled . | . . . . . Allies | -11 -10 -10 -9 -9 -------- Run | Yrd Mat Min Mat Sto Total Allies . | . . . . . Largest Group . | . . . . . Highest-Rated Group . | . . . . . Highest-Rated Ally . | . . . . . Total Orders . | . . . . . Ally Attacks . | . . . . . Total Damage . | . . . . . Kills . | . . . . . Allies Corrupted . | . . . . . Allies Melted . | . . . . . Intel | -11 -10 -10 -9 -9 ------- Run | Yrd Mat Min Mat Sto Robot Analysis Total 4 | . 4 . . . Derelict Logs Recovered 1 | . . 1 . . Drone Launches . | . . . . . Drone Recoveries . | . . . . . Exploration | -11 -10 -10 -9 -9 ------------- Run | Yrd Mat Min Mat Sto Turns Passed 1396 | 4 532 240 498 122 Spaces Moved 1214 | 3 357 370 386 98 Core 64 | . . . . 64 Treads . | . . . . . Legs 283 | 3 124 . 122 34 Wheels 84 | . 84 . . . Hover . | . . . . . Flight 783 | . 149 370 264 . Fastest Speed 31 | 120 37 37 31 50 Average Speed 64 | 120 81 47 63 74 Slowest Speed 190 | 120 180 107 190 120 Overloaded Moves . | . . . . . Propulsion Burnouts . | . . . . . Robots Hopped 10 | . 1 6 3 . Cave-ins Triggered . | . . . . . Exploration Rate (%) 42 | 2 71 62 44 31 Regions Visited 4 Branch Regions 2 Pre-discovered Areas . | . . . . . Known Exits Taken 3 | . 1 1 1 . Unknown Exits Taken 1 | 1 . . . . Scrap Searched 1 | . . 1 . . Spaces Dug . | . . . . . Terrain Destroyed 169 | . 55 79 . 35 Melee . | . . . . . Projectile . | . . . . . AOE 169 | . 55 79 . 35 Terrain Rammed . | . . . . . Walls Destroyed . | . . . . . Machines Disabled . | . . . . . Actions | -11 -10 -10 -9 -9 --------- Run | Yrd Mat Min Mat Sto Total 1565 | 3 500 398 541 123 Wait 93 | . 37 1 54 1 Move 1191 | 2 354 357 380 98 Hop 9 | . 1 6 2 . Pick Up 20 | . 9 . 9 2 Fast Attach 15 | . 6 3 6 . Attach 18 | . 6 1 7 4 Detach 12 | . 5 1 5 1 Swap 28 | 1 9 3 14 1 Drop 24 | . 11 . 11 2 Fire 153 | . 61 26 52 14 Melee . | . . . . . Ram . | . . . . . Kick 2 | . 1 . 1 . Crush . | . . . . . Escape Stasis . | . . . . . Rewire . | . . . . . Trap . | . . . . . Miscellaneous . | . . . . . Route ------- -11/Scrapyard -10/Materials (discovered 3 exits: *Mat x2 / *Min) -10/Mines -9/Materials (discovered 6 exits: *Mat x3 / Min / *Sto x2) -9/Storage (discovered 1 exit: Rec) History --------- Turn | Location | Event 3 | -11/Scrapyard | Discovered new exit (range 3) 5 | -11/Scrapyard | Entered Materials 188 | -10/Materials | Discovered new exit (range 11) 313 | -10/Materials | Build established: Mutant 414 | -10/Materials | Discovered new exit (range 12) 429 | -10/Materials | Discovered new exit (range 15) 453 | -10/Materials | Repaired Lgt. Ion Engine 531 | -10/Materials | Repaired Hvy. Assault Rifle 536 | -10/Materials | Identified exit to Mines 537 | -10/Materials | Entered Mines 573 | -10/Mines | Discovered new exit (range 13) 576 | -10/Mines | Learned location of 1 exit from Materials 714 | -10/Mines | Core integrity fell below 50% 777 | -10/Mines | Identified exit to Materials 777 | -10/Mines | Entered Materials 777 | -9/Materials | Evolved 2 slots: Propulsion x2 778 | -9/Materials | Identified exit to Materials 925 | -9/Materials | Discovered exit to Materials (range 16) 1087 | -9/Materials | Lost 4 parts (3n1w) 1171 | -9/Materials | Identified exit to Mines 1171 | -9/Materials | Identified exit to Storage 1227 | -9/Materials | Discovered exit to Materials (range 7) 1275 | -9/Materials | Entered Storage 1305 | -9/Storage | Identified exit to Recycling 1358 | -9/Storage | Core integrity fell below 50% 1367 | -9/Storage | Core integrity fell below 20% 1395 | -9/Storage | Lost 10 parts (1p3n1u5w) 1397 | -9/Storage | Destroyed by Y-45 Defender with Heavy Assault Rifle Last Messages --------------- 01348_ Lgt. Armor Plating destroyed. 01348_ U-05 Engineer lays Concrete. 01349_ Aluminum Leg destroyed. 01351_ U-05 Engineer builds a Wall. 01351_ Aluminum Leg destroyed. 01351_ Hvy. EM Pulse Gun destroyed. 01354_ Critical hit (Burn: +37). 01354_ S-10 Pest destroyed. 01354_ Hvy. EM Pulse Gun destroyed. 01355_ U-05 Engineer lays Concrete. 01357_ U-05 Engineer builds a Wall. 01357_ U-05 Engineer destroyed. 01360_ W-16 Scout destroyed. 01360_ Hvy. Ion Engine destroyed. 01360_ Critical hit (Burn: +37). 01361_ Transfer Shaft disabled. 01361_ Grenade Launcher destroyed. 01391_ U-05 Engineer destroyed. 01391_ ALERT: Hostiles spotted, dispatching reinforcements to Terminal S008. Map ----- +----------------------------------------------------+ | ?????????????????????????????????????????????????? | | ?????????????????????????????????????????????????? | | ?????????????????????????????????????????????????? | | ?????????????????????????????????????????????????? | | ?????????????????????????????????????????????????? | | ?????????????????????????????????????????????????? | | ?????????????????????????????????????????????????? | | ?????????????????????????????????????????????????? | | ?????????????????????????????????????????????????? | | ????????????????????????????????????????? ???????? | | ???????????????????????????????????????? ???????? | | ??????????????????????????##/#??????????# ???????? | | ????????????????????????? +?????????# ###????? | | ?????????????????????????? #?????????# #????? | | ?????????????????????????? #?????????+ +????? | | ??????????????????????????# #?????????# #????? | | ??????????????????????????# #?????????# #????? | | ??????????????????????????# r #?????????# #????? | | ??????????????????????????# #?????????# #????? | | ??????????????????????????# #?????????# #????? | | ??????????????????????????# #?????????# #????? | | ?????????????????????????## ##????????# #????? | | ???????????????##+######## ########## ###### | | ???????????????# !%* | | ???????????????# Y = | | ???????????????# @ | | ?????????????????###;##### ####+############## | | ?????????????????????????#######? ???????????? | | ???????????????????????????????# """ #?????????? | | ???????????????????????????????# """ #?????????? | | ???????????????????????????????# """ #?????????? | | ???????????????????????????????# #?????????? | | ???????????????????????????????# """ #??????##?? | | ???????????????????????????????# """ ######## ## | | ???????????????????????????????# ?????# | | ???????????????????????????????#! ?????# | | ???????????????????????????????# ?????# | | ??????????????????????????????? ?????# """ """ | | ???????????????????????????????###????????""" """ | | ??????????????????????????????????????????""" """ | | ??????????????????????????????????????????? ? | | ??????????????????????????????????????????? ? | | ????????????????????????????????????????########## | | ????????????????????????????????????????# | | ????????????????????????????????????????+ | | ????????????????????????????????????????# | | ????????????????????????????????????????# | | ????????????????????????????????????????# | | ??????????????????????????????#########?# """ " | | ??????????????????????????????# T # """ " | +----------------------------------------------------+ Best States ------------- Heat Dissipation 50 Energy Generation 14 Energy Capacity 280 Matter Stores 300 Matter Capacity 300 Sight Range 16 Terrain Scan Density 10 Armor Coverage 225 Evasion (%) 63 Targeting Accuracy 5 Item Schematics ----------------- None Robot Schematics ------------------ None Fabricated ------------ Nothing Alien Tech Used ----------------- None Achievements -------------- None Challenges ------------ None Game ------ Seed NeutronMicroProtection Manual? 0 Play Time 00:14:36 Cumulative 962.1 hours Start 2024.11.03 @ 20:12:18 End 2024.11.03 @ 20:25:45 Sessions 1 Manual Loads 0 Difficulty Rogue Special Mode None Game No. 1180 Rogue 900 Adventurer 124 Explorer 156 Win Type - Total 41 Types 28/0/8/3/1/0/0/1/0 Lore% 85 Gallery% 90 Achievement% 78 Wizard Run 0 Options --------- Layout 0 ASCII 0 Keyboard 1 Movement Numpad Keybinds 0 Fullscreen 2 Font 18/X11 Map View 76x50 Zoom Use 0% Tactical HUD 1 Map Filters NONE Filters NONE Steam 1 RUN: 142ade10-88cc-4cc5-8518-bedf3e8cc6ec